bitfinex/quotes_SOLUSD_20250131
["timestamp","ask_amount","ask_price","bid_price","bid_amount"]
[1738329299404,21.5008,241.42,241.39,0.063]
[1738329299591,21.5008,241.42,241.38,0.063]
[1738329299924,21.5008,241.42,241.37,0.063]
[1738329299925,20.0,241.41,241.37,0.063]
[1738329301738,1.5008,241.42,241.37,0.063]
[1738329301739,20.0,241.38,241.37,0.063]
[1738329302596,50.0,241.38,241.37,0.063]
[1738329303028,1.5008,241.42,241.37,0.063]
[1738329303029,20.0,241.41,241.37,0.063]
[1738329305399,20.0,241.41,241.36,0.063]
[1738329306124,30.0,241.37,241.36,0.063]
[1738329308130,30.0,241.37,241.35,0.063]
[1738329309219,5.2888474,241.44,241.35,0.063]
[1738329309539,1.5389,241.48,241.35,0.063]
[1738329309746,20.0,241.46,241.35,0.063]
[1738329310303,20.0,241.46,241.36,13.41184853]
[1738329310519,1.5389,241.48,241.36,13.41184853]
[1738329311111,20.0,241.46,241.35,0.063]
[1738329311633,1.5389,241.48,241.35,0.063]
[1738329312541,20.0,241.46,241.35,0.063]
[1738329313212,20.03,241.46,241.35,0.063]
[1738329313424,0.03,241.46,241.35,0.063]
[1738329313739,0.03,241.46,241.36,0.62130679]
[1738329314339,0.03,241.46,241.36,12.98149282]
[1738329314512,0.03,241.46,241.36,0.62130679]
[1738329315216,0.03,241.46,241.37,8.03680055]
[1738329315422,0.03,241.46,241.39,13.41184853]
[1738329315728,0.03,241.46,241.41,13.41184853]
[1738329316423,0.03,241.46,241.38,13.41184853]
[1738329316626,20.0,241.52,241.38,20.0]
[1738329316919,20.0,241.52,241.38,33.41184853]
[1738329318840,20.0,241.52,241.4,13.41184853]
[1738329321041,5.2888474,241.55,241.42,21.23804853]
[1738329321246,1.02385169,241.57,241.44,13.41184853]
[1738329321441,20.0,241.59,241.44,13.41184853]
[1738329322150,21.04495545,241.59,241.44,13.41184853]
[1738329323823,21.04495545,241.59,241.46,13.41184853]
[1738329324030,20.0,241.59,241.48,13.41184853]
[1738329324230,20.0,241.59,241.5,13.41184853]
[1738329325231,5.2888474,241.62,241.52,19.49034853]
[1738329325426,1.01187022,241.66,241.54,13.41184853]
[1738329325628,1.6487,241.67,241.55,0.62079051]
[1738329325829,20.0,241.66,241.56,13.41184853]
[1738329326163,20.0,241.66,241.54,13.41184853]
[1738329326456,21.01394182,241.66,241.54,13.41184853]
[1738329326659,1.01394182,241.66,241.54,13.41184853]
[1738329326853,1.6487,241.67,241.54,13.41184853]
[1738329327024,20.0,241.66,241.54,13.41184853]
[1738329327331,1.02429979,241.66,241.54,13.41184853]
[1738329327655,1.6487,241.67,241.54,13.41184853]
[1738329332743,1.05555784,241.68,241.54,13.41184853]
[1738329333047,6.32298726,241.69,241.54,13.41184853]
[1738329333248,6.32298726,241.69,241.56,13.41184853]
[1738329333447,5.2888474,241.69,241.58,13.41184853]
[1738329333747,0.03,241.7,241.6,13.41184853]
[1738329333946,2.1107794,241.7,241.6,13.41184853]
[1738329334248,0.03,241.7,241.6,13.41184853]
[1738329334429,1.04592263,241.7,241.6,13.41184853]
[1738329334743,0.03,241.7,241.6,13.41184853]
[1738329335425,1.06880238,241.7,241.6,13.41184853]
[1738329335627,20.0,241.67,241.6,13.41184853]
[1738329339045,20.0,241.67,241.6,13.39184853]
[1738329340833,0.03,241.68,241.6,14.01257271]
[1738329341235,0.03,241.68,241.62,13.41184853]
[1738329342853,0.03,241.68,241.61,1.5203]
[1738329342854,0.03,241.68,241.64,13.41184853]
[1738329343741,0.03,241.68,241.66,13.41184853]
[1738329344542,0.03,241.68,241.67,14.03236202]
[1738329346358,0.03,241.68,241.67,13.41184853]
[1738329351439,0.03,241.68,241.67,19.71824853]
[1738329353050,0.03,241.7,241.68,13.41184853]
[1738329353550,20.03,241.76,241.7,13.41184853]
[1738329353744,0.03,241.76,241.7,13.41184853]
[1738329357760,0.03,241.76,241.72,13.41184853]
[1738329358262,0.03,241.76,241.69,13.41184853]
[1738329360943,1.544,241.75,241.68,13.41184853]
[1738329361146,1.544,241.75,241.61,1.5203]
[1738329361147,1.544,241.75,241.62,13.41184853]
[1738329361366,20.0,241.72,241.62,13.41184853]
[1738329361858,20.0,241.72,241.6,13.47484853]
[1738329361859,30.0,241.71,241.6,13.47484853]
[1738329362056,20.0,241.68,241.6,13.47484853]
[1738329362443,20.0,241.68,241.6,0.063]
[1738329362639,20.0,241.66,241.6,0.063]
[1738329362867,20.0,241.66,241.51,6.4649]
[1738329363071,20.0,241.66,241.52,13.41184853]
[1738329363658,20.0,241.62,241.52,13.41184853]
[1738329365280,30.0,241.65,241.55,12.47748456]
[1738329365577,1.5143,241.73,241.59,13.41184853]
[1738329365749,1.5143,241.73,241.59,14.03251768]
[1738329365959,20.0,241.72,241.61,13.41184853]
[1738329366159,1.5143,241.73,241.61,13.41184853]
[1738329366854,20.0,241.72,241.58,12.35199456]
[1738329367059,20.0,241.72,241.59,13.41184853]
[1738329367362,20.0,241.72,241.55,13.53733853]
[1738329367969,20.0,241.72,241.58,12.47748456]
[1738329368271,1.5143,241.73,241.64,13.41184853]
[1738329370960,0.03,241.76,241.64,13.41184853]
[1738329372050,0.03,241.76,241.66,13.41184853]
[1738329372673,0.03,241.76,241.64,13.41184853]
[1738329374178,0.03,241.76,241.62,13.41184853]
[1738329374380,0.03,241.73,241.62,13.41184853]
[1738329375074,0.03,241.73,241.61,13.41184853]
[1738329377171,0.03,241.73,241.61,25.76384309]
[1738329377710,0.03,241.73,241.61,13.41184853]
[1738329378770,0.03,241.73,241.62,12.35199456]
[1738329379079,0.03,241.73,241.62,12.97258152]
[1738329381272,0.03,241.73,241.62,12.35199456]
[1738329381772,0.03,241.73,241.62,12.97260127]
[1738329382170,0.03,241.73,241.61,13.41184853]
[1738329382171,0.03,241.73,241.61,25.76384309]
[1738329385073,0.03,241.73,241.61,13.41184853]
[1738329385971,1.5579,241.72,241.6,13.47484853]
[1738329386177,20.0,241.69,241.6,0.063]
[1738329388086,21.0595982,241.69,241.6,0.063]
[1738329389296,20.0,241.63,241.6,0.063]
[1738329391369,21.505,241.63,241.6,0.063]
[1738329394180,21.48121349,241.63,241.6,0.063]
[1738329394381,21.48121349,241.63,241.46,1.567]
[1738329394382,30.0,241.62,241.47,13.41184853]
[1738329394897,30.0,241.62,241.46,0.063]
[1738329396279,20.0,241.59,241.46,0.063]
[1738329396480,20.0,241.55,241.46,0.063]
[1738329397296,21.04821121,241.55,241.46,0.063]
[1738329397486,20.0,241.51,241.46,0.063]
[1738329398200,1.524,241.49,241.46,0.063]
[1738329399880,30.0,241.48,241.46,0.063]
[1738329401399,1.524,241.49,241.46,0.063]
[1738329401579,1.5942,241.56,241.46,0.063]
[1738329404021,1.5942,241.56,241.48,13.41184853]
[1738329404226,1.6462,241.62,241.48,13.41184853]
[1738329405829,1.6462,241.62,241.46,0.063]
[1738329408615,1.6462,241.62,241.48,13.41184853]
[1738329409112,1.6462,241.62,241.51,12.35199456]
[1738329409305,0.03,241.63,241.52,19.91634853]
[1738329409896,0.03,241.62,241.52,19.91634853]
[1738329410090,0.03,241.62,241.56,12.35199456]
[1738329410296,0.03,241.62,241.57,13.41184853]
[1738329412119,0.03,241.62,241.54,25.76384309]
[1738329412436,0.03,241.62,241.54,13.41184853]
[1738329412641,0.03,241.62,241.53,13.41184853]
[1738329412848,0.03,241.62,241.53,25.76384309]
[1738329413546,0.03,241.62,241.55,13.41184853]
[1738329414146,0.03,241.62,241.54,13.41184853]
[1738329414741,0.03,241.62,241.53,25.76384309]
[1738329415046,0.03,241.62,241.53,13.41184853]
[1738329418720,0.03,241.62,241.46,20.13234853]
[1738329420354,30.0,241.57,241.46,20.13234853]
[1738329420874,20.0,241.54,241.46,0.063]
[1738329422180,30.0,241.53,241.46,0.063]
[1738329422473,29.922662,241.53,241.46,0.063]
[1738329424159,20.0,241.5,241.46,0.063]
[1738329424577,29.922662,241.53,241.46,0.063]
[1738329429885,20.0,241.5,241.46,0.063]
[1738329431257,30.0,241.49,241.46,0.063]
[1738329432457,20.0,241.47,241.46,0.063]
[1738329433660,50.0,241.47,241.46,0.063]
[1738329436179,50.0,241.47,241.35,0.063]
[1738329436677,50.0,241.47,241.46,0.063]
[1738329436881,50.0,241.47,241.35,0.063]
[1738329437075,20.0,241.43,241.35,0.063]
[1738329438588,30.0,241.46,241.35,0.063]
[1738329438589,2.56067334,241.48,241.35,0.063]
[1738329438876,1.5477,241.48,241.36,13.41184853]
[1738329439376,1.5477,241.48,241.35,0.063]
[1738329439568,1.5477,241.48,241.35,7.97808961]
[1738329440087,1.5477,241.48,241.35,13.47484853]
[1738329441074,1.5477,241.48,241.35,0.063]
[1738329441879,21.5477,241.48,241.35,0.063]
[1738329442882,1.0,241.46,241.35,0.063]
[1738329443184,20.0,241.39,241.35,0.063]
[1738329443380,21.6244,241.39,241.35,0.063]
[1738329443572,20.0,241.37,241.35,0.063]
[1738329444163,20.0,241.37,241.26,13.47484853]
[1738329444366,20.0,241.32,241.26,13.47484853]
[1738329444587,20.0,241.32,241.26,0.063]
[1738329446773,30.0,241.31,241.26,0.063]
[1738329449695,20.0,241.28,241.26,0.063]
[1738329449893,30.0,241.31,241.26,0.063]
[1738329453794,20.0,241.28,241.26,0.063]
[1738329455776,30.0,241.27,241.26,0.063]
[1738329456800,20.0,241.35,241.26,0.063]
[1738329457000,21.0,241.35,241.26,0.063]
[1738329457195,1.0,241.34,241.26,0.063]
[1738329457902,30.0,241.27,241.26,0.063]
[1738329458089,30.0,241.27,241.24,0.063]
[1738329458290,20.0,241.24,241.21,0.063]
[1738329458807,30.0,241.23,241.21,0.063]
[1738329459602,1.5636,241.29,241.21,0.063]
[1738329459790,2.86,241.31,241.21,0.063]
[1738329460191,1.0,241.3,241.21,0.063]
[1738329460684,2.86,241.31,241.21,0.063]
[1738329461107,1.0,241.3,241.21,0.063]
[1738329462393,1.0,241.3,241.2,0.063]
[1738329462599,1.0,241.28,241.2,0.063]
[1738329463408,1.0,241.28,240.96,13.43125354]
[1738329463409,20.0,241.21,241.06,13.41184853]
[1738329463607,20.0,241.21,241.08,13.41184853]
[1738329463811,1.5155,241.27,241.08,13.41184853]
[1738329463812,20.0,241.26,241.08,13.41184853]
[1738329463998,20.0,241.26,241.21,0.03]
[1738329464898,1.0,241.24,241.21,0.03]
[1738329465107,20.0,241.26,241.21,0.03]
[1738329466190,30.0,241.22,241.21,0.03]
[1738329469298,20.0,241.25,241.21,0.03]
[1738329469502,4.3755,241.27,241.21,0.03]
[1738329469994,24.3755,241.27,241.21,0.03]
[1738329470217,20.0,241.25,241.21,0.03]
[1738329471706,4.3755,241.27,241.21,0.03]
[1738329471707,24.3755,241.27,241.21,0.03]
[1738329471909,20.0,241.26,241.21,0.03]
[1738329472603,4.3755,241.27,241.21,0.03]
[1738329473713,20.0,241.26,241.21,0.03]
[1738329475915,1.5155,241.27,241.21,0.03]
[1738329476102,1.0288992,241.32,241.21,0.03]
[1738329476304,1.6722,241.33,241.21,0.03]
[1738329476621,0.063,241.26,241.21,0.03]
[1738329479423,19.53807603,241.3,241.21,0.03]
[1738329481719,2.923,241.33,241.22,6.357]
[1738329481919,2.923,241.33,241.23,13.41184853]
[1738329481920,0.063,241.33,241.23,13.41184853]
[1738329482405,20.0,241.32,241.23,13.41184853]
[1738329482606,0.063,241.33,241.23,13.41184853]
[1738329483011,0.063,241.33,241.23,21.34239864]
[1738329484107,0.063,241.33,241.24,0.12549]
[1738329484313,0.063,241.33,241.31,13.41184853]
[1738329484506,0.063,241.33,241.32,19.76194853]
[1738329486122,0.063,241.33,241.32,27.81798864]
[1738329486426,0.063,241.33,241.32,28.43935419]
[1738329486615,49.28,241.43,241.33,13.53733853]
[1738329486813,49.28,241.43,241.35,8.05604011]
[1738329487006,49.28,241.43,241.36,14.03313601]
[1738329487727,49.28,241.43,241.37,0.12549]
[1738329488234,49.28,241.43,241.33,13.41184853]
[1738329488738,49.28,241.43,241.38,13.41184853]
[1738329489104,49.28,241.43,241.37,13.41184853]
[1738329489506,49.28,241.43,241.38,7.93055011]
[1738329490015,0.03,241.46,241.41,13.41184853]
[1738329490343,0.03,241.46,241.43,13.41184853]
[1738329493306,0.03,241.46,241.38,13.41184853]
[1738329494833,0.03,241.46,241.32,13.53733853]
[1738329497732,0.03,241.46,241.32,21.46788864]
[1738329498033,0.03,241.46,241.36,8.05604011]
[1738329498333,0.03,241.46,241.37,13.41184853]
[1738329498531,0.03,241.46,241.34,13.41184853]
[1738329498749,0.03,241.46,241.32,13.41184853]
[1738329499629,1.5784,241.45,241.32,13.41184853]
[1738329506430,1.5784,241.45,241.33,0.12549]
[1738329506631,1.5784,241.45,241.33,12.48799572]
[1738329508022,0.03,241.46,241.36,12.36250572]
[1738329508223,0.03,241.46,241.39,13.41184853]
[1738329508825,0.03,241.46,241.38,13.41184853]
[1738329509127,0.03,241.46,241.4,12.36250572]
[1738329509328,0.03,241.46,241.41,13.41184853]
[1738329509947,0.03,241.46,241.4,13.41184853]
[1738329510643,0.03,241.46,241.41,0.74667063]
[1738329510829,0.03,241.46,241.41,12.48799572]
[1738329511142,0.03,241.46,241.42,13.41184853]
[1738329511546,0.03,241.46,241.38,0.62116854]
[1738329511547,0.03,241.46,241.39,13.41184853]
[1738329512049,0.03,241.46,241.39,26.39558648]
[1738329512942,0.03,241.46,241.39,25.77435425]
[1738329513353,0.03,241.46,241.37,25.77435425]
[1738329513651,0.03,241.46,241.38,0.12549]
[1738329515132,0.03,241.46,241.39,14.03307067]
[1738329516352,0.03,241.46,241.38,13.53733853]
[1738329518250,0.03,241.46,241.34,12.9837179]
[1738329518432,0.03,241.46,241.35,13.41184853]
[1738329518749,0.03,241.46,241.33,13.44184853]
[1738329519750,0.03,241.46,241.34,0.12549]
[1738329520632,0.03,241.46,241.33,0.03]
[1738329520833,20.0,241.45,241.33,0.03]
[1738329522549,20.0,241.45,241.33,0.15549]
[1738329522759,20.0,241.45,241.33,8.07020842]
[1738329523554,20.0,241.45,241.33,21.48205695]
[1738329523732,20.0,241.45,241.34,13.41184853]
[1738329524229,20.0,241.45,241.33,0.15549]
[1738329524554,20.0,241.45,241.34,7.91471842]
[1738329524856,0.03,241.46,241.34,7.91471842]
[1738329525357,20.0,241.45,241.36,21.32656695]
[1738329525731,0.03,241.46,241.36,21.32656695]
[1738329525938,0.03,241.46,241.37,0.12549]
[1738329526856,5.09008075,241.48,241.37,0.12549]
[1738329527235,5.09008075,241.48,241.36,0.12549]
[1738329529653,5.09008075,241.48,241.34,13.41184853]
[1738329530050,5.09008075,241.48,241.35,0.12549]
[1738329530857,20.0,241.45,241.34,0.12549]
[1738329535578,20.0,241.45,241.33,7.94471842]
[1738329535745,20.0,241.45,241.33,0.03]
[1738329535945,20.0,241.45,241.33,0.15549]
[1738329537770,20.0,241.45,241.33,8.07020842]
[1738329539373,20.0,241.45,241.33,0.15549]
[1738329539759,1.6244,241.44,241.33,0.15549]
[1738329544877,1.6244,241.44,241.4,13.41184853]
[1738329545256,1.6244,241.44,241.36,13.41184853]
[1738329545676,1.6244,241.44,241.35,13.53733853]
[1738329546672,1.6244,241.44,241.35,13.41184853]
[1738329546973,1.6244,241.44,241.33,13.44184853]
[1738329547275,1.6244,241.44,241.34,0.12549]
[1738329547578,1.6244,241.44,241.35,0.03]
[1738329555279,1.6064,241.42,241.33,0.03]
[1738329555475,21.6064,241.4,241.33,0.03]
[1738329555681,21.6064,241.38,241.21,0.03]
[1738329555906,20.0,241.34,241.21,0.03]
[1738329556073,1.5905,241.29,241.21,0.03]
[1738329557376,30.0,241.28,241.21,0.03]
[1738329557887,20.0,241.25,241.21,0.03]
[1738329560592,30.0,241.28,241.21,0.03]
[1738329560779,1.5905,241.29,241.21,0.03]
[1738329561488,1.5905,241.29,241.21,13.56733853]
[1738329561802,1.5905,241.29,241.24,13.41184853]
[1738329562108,1.5905,241.29,241.23,0.03]
[1738329567790,30.0,241.24,241.23,0.03]
[1738329570486,20.0,241.22,241.21,0.03]
[1738329570687,8.1137,241.23,241.21,0.03]
[1738329571097,30.0,241.22,241.21,0.03]
[1738329577691,30.0,241.22,241.2,0.03]
[1738329577907,30.0,241.22,241.09,13.44184853]
[1738329578102,20.0,241.19,241.09,13.44184853]
[1738329579027,20.0,241.17,241.09,0.03]
[1738329579710,50.0,241.17,241.09,0.03]
[1738329579914,1.6387,241.16,241.09,0.03]
[1738329580110,1.6387,241.16,241.08,0.03]
[1738329580717,20.0,241.12,241.08,0.03]
[1738329581694,30.0,241.1,241.08,0.03]
[1738329582429,20.0,241.07,241.01,0.063]
[1738329583211,20.0,241.02,241.01,0.063]
[1738329583588,30.0,241.05,241.01,0.063]
[1738329584204,2.86,241.09,241.01,0.063]
[1738329585823,20.0,241.12,241.01,0.063]
[1738329586125,80.6,241.15,241.01,13.47484853]
[1738329586126,2.86,241.14,241.01,13.47484853]
[1738329586304,80.6,241.15,241.01,13.47484853]
[1738329586719,20.0,241.12,241.01,0.063]
[1738329591922,80.6,241.15,241.01,0.063]
[1738329592821,20.0,241.12,241.01,0.063]
[1738329593741,1.6387,241.16,241.03,12.38525893]
[1738329593942,1.6387,241.16,241.05,13.41184853]
[1738329594147,21.02357973,241.18,241.05,13.41184853]
[1738329594442,20.0,241.18,241.05,13.41184853]
[1738329594819,22.9772099,241.21,241.05,13.41184853]
[1738329595025,20.1172099,241.21,241.08,13.41184853]
[1738329595327,20.0,241.18,241.08,12.38525893]
[1738329595525,83.46,241.26,241.12,13.41184853]
[1738329595835,3.88085326,241.26,241.12,13.41184853]
[1738329596026,1.02085326,241.26,241.12,13.41184853]
[1738329596224,2.04108392,241.26,241.12,13.41184853]
[1738329596431,22.04108392,241.26,241.12,13.41184853]
[1738329598712,20.0,241.25,241.12,13.41184853]
[1738329599345,22.04108392,241.26,241.12,13.41184853]
[1738329599848,20.0,241.25,241.12,13.41184853]
[1738329601032,21.0,241.25,241.06,13.41184853]
[1738329601218,25.64654952,241.25,241.06,13.41184853]
[1738329602946,1.0,241.24,241.06,13.41184853]
[1738329603825,2.04108392,241.26,241.06,13.41184853]
[1738329603826,20.0,241.2,241.06,13.41184853]
[1738329604132,1.5846,241.18,241.06,13.41184853]
[1738329604330,21.5846,241.18,241.06,13.41184853]
[1738329607228,21.5846,241.18,241.06,13.44184853]
[1738329607426,20.0,241.09,241.06,13.44184853]
[1738329608434,30.0,241.12,241.06,13.44184853]
[1738329611040,20.0,241.18,241.06,13.44184853]
[1738329617641,1.6052,241.22,241.06,13.44184853]
[1738329617843,0.063,241.23,241.08,13.41184853]
[1738329618222,0.063,241.23,241.1,13.41184853]
[1738329618842,0.063,241.23,241.08,12.38525893]
[1738329619150,0.063,241.23,241.08,13.41184853]
[1738329619734,0.063,241.23,241.1,13.41184853]
[1738329622743,20.063,241.23,241.1,13.41184853]
[1738329622950,4.70954952,241.23,241.1,13.41184853]
[1738329623835,0.063,241.23,241.1,13.41184853]
[1738329624040,4.64654952,241.22,241.1,13.41184853]
[1738329624237,4.64654952,241.22,241.09,6.0118]
[1738329624238,20.0,241.18,241.09,6.0118]
[1738329624741,20.0,241.18,241.1,13.41184853]
[1738329626455,21.05309188,241.18,241.1,13.41184853]
[1738329627151,20.0,241.18,241.1,13.41184853]
[1738329627333,80.6,241.21,241.1,13.41184853]
[1738329627535,1.01386169,241.21,241.1,13.41184853]
[1738329627736,0.063,241.23,241.1,13.41184853]
[1738329631138,2.923,241.23,241.1,13.41184853]
[1738329636971,0.063,241.23,241.12,13.41184853]
[1738329637155,0.063,241.23,241.14,13.41184853]
[1738329638365,0.063,241.23,241.13,6.4259]
[1738329638550,0.063,241.23,241.14,13.41184853]
[1738329639848,2.923,241.23,241.14,13.41184853]
[1738329647850,20.0,241.22,241.14,13.41184853]
[1738329651381,20.0,241.22,241.13,6.4259]
[1738329651879,4.64654952,241.22,241.09,13.41184853]
[1738329653471,20.0,241.21,241.09,13.41184853]
[1738329653856,4.64654952,241.22,241.09,13.41184853]
[1738329654168,2.923,241.23,241.09,13.41184853]
[1738329654760,20.0,241.21,241.09,13.41184853]
[1738329654957,20.0,241.21,241.12,13.41184853]
[1738329655879,2.923,241.23,241.12,13.41184853]
[1738329656670,0.063,241.22,241.12,13.41184853]
[1738329657081,0.063,241.22,241.11,6.4154]
[1738329657282,20.0,241.2,241.11,6.4154]
[1738329658275,30.0,241.14,241.11,6.4154]
[1738329658579,20.0,241.12,241.11,6.4154]
[1738329658766,20.0,241.11,241.08,0.03]
[1738329665157,30.0,241.1,241.08,0.03]
[1738329666571,1.04155423,241.18,241.08,0.03]
[1738329666771,20.0,241.18,241.08,0.03]
[1738329667188,81.6132218,241.21,241.09,6.3587]
[1738329667381,6.44745626,241.2,241.1,13.41184853]
[1738329667880,20.0,241.17,241.1,13.41184853]
[1738329668300,6.44745626,241.2,241.1,13.41184853]
[1738329669097,20.0,241.17,241.1,13.41184853]
[1738329669789,20.063,241.18,241.1,13.41184853]
[1738329676368,21.588,241.18,241.08,0.03]
[1738329676700,30.0,241.1,241.08,0.03]
[1738329677073,20.0,241.07,241.06,0.03]
[1738329679169,50.0,241.07,241.06,0.03]
[1738329679370,30.0,241.07,241.06,0.03]
[1738329679571,1.588,241.18,241.06,0.03]
[1738329679771,0.063,241.18,241.06,0.03]
[1738329680695,0.063,241.08,241.06,0.03]
[1738329684487,19.626,241.18,241.06,0.03]
[1738329690707,0.063,241.22,241.07,6.4282]
[1738329691017,0.063,241.22,241.08,13.41184853]
[1738329691514,20.0,241.21,241.08,13.41184853]
[1738329693813,0.063,241.22,241.1,13.41184853]
[1738329694519,0.063,241.18,241.1,13.41184853]
[1738329701785,0.063,241.18,241.12,13.41184853]
[1738329703008,0.063,241.18,241.12,14.0336865]
[1738329705297,0.063,241.18,241.12,13.41184853]
[1738329705609,0.063,241.18,241.12,25.79710746]
[1738329706196,0.063,241.18,241.14,13.41184853]
[1738329706694,0.063,241.18,241.15,34.56523978]
[1738329707089,0.063,241.18,241.17,25.79710746]
[1738329707506,0.063,241.18,241.17,13.41184853]
[1738329707909,0.063,241.21,241.17,26.04808746]
[1738329708091,0.063,241.22,241.21,1.73339]
[1738329708410,0.063,241.22,241.21,28.1521185]
[1738329708801,0.063,241.22,241.21,15.01974853]
[1738329711309,0.063,241.22,241.21,27.40500746]
[1738329712612,0.063,241.22,241.21,22.94157315]
[1738329712816,0.063,241.22,241.21,15.01974853]
[1738329714316,0.063,241.22,241.21,22.94157315]
[1738329715496,0.063,241.22,241.21,15.01974853]
[1738329718117,0.063,241.22,241.21,15.04974853]
[1738329718312,0.063,241.22,241.21,23.71869927]
[1738329718716,0.063,241.22,241.21,15.17523853]
[1738329720205,0.063,241.22,241.21,23.09706315]
[1738329720698,0.063,241.22,241.21,23.22255315]
[1738329720899,0.063,241.22,241.21,23.34804315]
[1738329721714,0.063,241.23,241.22,14.78831853]
[1738329721912,0.063,241.23,241.22,23.33162243]
[1738329723044,0.063,241.23,241.22,27.48462243]
[1738329723243,0.063,241.33,241.26,13.78831853]
[1738329723404,0.063,241.33,241.28,13.66282853]
[1738329723605,0.063,241.33,241.3,13.41184853]
[1738329724417,20.063,241.33,241.26,13.41184853]
[1738329724619,20.063,241.33,241.22,13.41184853]
[1738329726931,20.063,241.33,241.22,21.33367315]
[1738329727121,20.063,241.33,241.24,13.41184853]
[1738329728413,20.063,241.33,241.25,0.12549]
[1738329728627,20.063,241.33,241.26,13.41184853]
[1738329728829,0.063,241.33,241.26,13.41184853]
[1738329729036,0.063,241.33,241.28,25.78648741]
[1738329729324,0.063,241.33,241.3,13.41184853]
[1738329730108,0.063,241.33,241.28,0.12549]
[1738329731425,0.063,241.33,241.25,13.41184853]
[1738329731634,20.063,241.33,241.22,13.44184853]
[1738329732126,20.063,241.33,241.23,0.12549]
[1738329732924,20.063,241.33,241.22,13.44184853]
[1738329735332,20.063,241.33,241.22,25.81648741]
[1738329735629,20.063,241.33,241.23,0.12549]
[1738329735823,0.063,241.33,241.23,0.12549]
[1738329736024,0.063,241.33,241.27,13.53733853]
[1738329736230,0.063,241.33,241.29,13.41184853]
[1738329736735,0.063,241.33,241.27,13.53733853]
[1738329739623,0.063,241.33,241.27,25.91197741]
[1738329740223,0.063,241.33,241.3,12.37463888]
[1738329740429,0.063,241.33,241.32,13.41184853]
[1738329742136,0.063,241.33,241.29,12.37463888]
[1738329742137,0.063,241.33,241.27,13.53733853]
[1738329743138,0.063,241.33,241.25,13.41184853]
[1738329743645,0.063,241.33,241.24,0.12549]
[1738329743840,0.063,241.33,241.25,13.41184853]
[1738329745644,0.063,241.33,241.27,13.41184853]
[1738329745842,0.063,241.33,241.27,25.78648741]
[1738329746247,0.063,241.33,241.27,13.41184853]
[1738329746645,0.063,241.33,241.29,13.41184853]
[1738329747547,0.063,241.33,241.31,13.41184853]
[1738329747733,0.063,241.33,241.31,25.78648741]
[1738329748337,0.063,241.33,241.32,26.40789865]
[1738329749158,0.063,241.33,241.32,26.53338865]
[1738329751430,0.063,241.33,241.32,14.15874977]
[1738329753452,1.6277,241.42,241.33,13.66282853]
[1738329753625,1.6277,241.42,241.35,13.41184853]
[1738329753827,1.6277,241.42,241.36,14.03312369]
[1738329757250,0.063,241.43,241.36,14.03312369]
[1738329757628,0.063,241.43,241.36,13.41184853]
[1738329758032,0.063,241.43,241.36,13.53733853]
[1738329758229,0.063,241.43,241.36,14.15857673]
[1738329759843,0.063,241.43,241.36,14.28406673]
[1738329760057,0.063,241.43,241.37,13.66282853]
[1738329760226,0.063,241.43,241.39,13.53733853]